bitfinex/quotes_ETHUSD_20250219
["timestamp","ask_amount","ask_price","bid_price","bid_amount"]
[1739925857045,14.79008506,2677.4,2677.3,0.12157091]
[1739925857383,14.79008506,2677.4,2677.2,1.60667012]
[1739925857542,14.79008506,2677.4,2677.3,0.12157091]
[1739925857880,14.79008506,2677.4,2677.2,1.60667012]
[1739925858084,14.79008506,2677.4,2677.3,0.12157091]
[1739925858383,14.79008506,2677.4,2677.2,1.60667012]
[1739925858556,1.50412462,2677.3,2677.2,1.60667012]
[1739925858880,1.50412462,2677.3,2677.0,5.34219012]
[1739925859492,0.02511611,2677.3,2677.0,5.34219012]
[1739925859692,0.02511611,2677.3,2677.1,0.35058347]
[1739925860527,13.107,2677.4,2677.1,0.35058347]
[1739925861285,0.02511611,2677.3,2677.0,5.34219012]
[1739925861926,0.02511611,2677.3,2677.1,0.28053931]
[1739925863127,0.02511611,2677.3,2677.0,5.34212012]
[1739925864217,0.02511611,2677.3,2677.1,0.35074959]
[1739925864428,0.02511611,2677.3,2677.1,0.61938203]
[1739925864783,13.107,2677.4,2677.1,0.61938203]
[1739925865525,13.107,2677.4,2677.1,0.26863244]
[1739925866020,14.49008506,2677.4,2677.0,5.34212012]
[1739925867725,14.49008506,2677.4,2677.1,0.28071153]
[1739925869245,14.49008506,2677.4,2677.0,5.34212012]
[1739925869402,13.107,2677.4,2677.2,0.12166954]
[1739925869601,13.107,2677.4,2677.0,5.34212012]
[1739925869817,13.107,2677.4,2677.1,0.12173424]
[1739925870142,13.107,2677.4,2677.1,0.3904743]
[1739925870444,0.02511611,2677.3,2677.1,0.3904743]
[1739925871846,0.02511611,2677.3,2677.1,0.12173424]
[1739925874351,29.26409611,2677.3,2677.1,0.12173424]
[1739925874532,29.23898,2677.3,2677.1,0.12173424]
[1739925878505,29.23898,2677.3,2677.2,1.60667012]
[1739925878920,29.23898,2677.3,2677.2,1.72833966]
[1739925883658,29.23898,2677.3,2677.2,2.46561852]
[1739925885554,29.23898,2677.3,2677.2,6.95285852]
[1739925885757,29.23898,2677.3,2677.2,8.02166937]
[1739925886328,29.23898,2677.3,2677.2,9.62833949]
[1739925886508,29.23898,2677.3,2677.2,9.89694969]
[1739925886851,29.23898,2677.3,2677.2,15.5374501]
[1739925887720,29.23898,2677.3,2677.2,13.93077998]
[1739925895703,29.23898,2677.3,2677.2,8.37472913]
[1739925896257,29.23898,2677.3,2677.2,3.01472913]
[1739925897259,29.23898,2677.3,2677.2,2.74611893]
[1739925898035,29.23898,2677.3,2677.2,2.46561852]
[1739925898336,29.23898,2677.3,2677.2,1.72833966]
[1739925898533,30.5411136,2677.3,2677.2,1.72833966]
[1739925902041,29.23898,2677.3,2677.2,1.72833966]
[1739925904740,30.01818,2677.3,2677.2,1.72833966]
[1739925906348,29.23898,2677.3,2677.2,1.72833966]
[1739925907441,29.23898,2677.3,2677.2,2.49883966]
[1739925907645,29.23898,2677.3,2677.2,6.23407966]
[1739925907852,29.23898,2677.3,2677.2,8.91338973]
[1739925908223,29.23898,2677.3,2677.2,14.27338973]
[1739925908622,29.23898,2677.3,2677.2,12.93483432]
[1739925909348,29.23898,2677.3,2677.2,13.21481685]
[1739925909547,29.23898,2677.3,2677.2,14.82148697]
[1739925910559,29.23898,2677.3,2677.2,13.21481685]
[1739925912472,29.23898,2677.3,2677.2,12.1421769]
[1739925912820,29.23898,2677.3,2677.2,7.6364369]
[1739925913265,29.99688,2677.3,2677.2,7.6364369]
[1739925914170,29.99688,2677.3,2677.2,0.66976678]
[1739925914469,29.99688,2677.3,2677.2,0.26811471]
[1739925914631,33.370058,2677.3,2677.2,0.26811471]
[1739925914842,33.370058,2677.3,2677.2,0.38949234]
[1739925915163,33.370058,2677.3,2677.2,0.12137763]
[1739925915330,50.211158,2677.3,2677.2,0.12137763]
[1739925915530,0.7579,2677.1,2676.7,3.2135832]
[1739925915733,0.02511611,2677.0,2676.8,0.27996352]
[1739925915930,13.8659,2676.9,2676.8,0.4016]
[1739925916148,23.53156,2676.9,2676.8,0.27996352]
[1739925916360,43.28956,2676.9,2676.8,0.27996352]
[1739925916664,47.10526161,2676.9,2676.8,0.27996352]
[1739925917065,23.06160161,2676.9,2676.8,0.27996352]
[1739925917367,0.7579,2676.9,2676.7,6.9494832]
[1739925917668,0.763,2677.2,2676.8,0.12163648]
[1739925917853,0.763,2677.2,2676.7,6.9494832]
[1739925918167,29.23898,2677.3,2677.0,3.2135832]
[1739925918385,29.23898,2677.3,2677.1,3.73528]
[1739925918666,29.23898,2677.3,2677.1,0.12144234]
[1739925918868,0.78811611,2677.2,2677.1,0.12144234]
[1739925919019,0.78811611,2677.2,2676.8,3.2135832]
[1739925919217,0.763,2677.2,2676.9,0.12176187]
[1739925919838,0.02511611,2677.1,2676.9,0.12176187]
[1739925920153,0.763,2677.2,2676.9,0.12176187]
[1739925920450,0.02511611,2677.1,2676.9,0.12176187]
[1739925920954,3.69373852,2677.1,2676.9,0.86987416]
[1739925921266,3.69373852,2677.1,2676.9,0.74811229]
[1739925921568,0.763,2677.2,2677.0,0.12169715]
[1739925921721,13.107,2677.1,2677.0,0.12169715]
[1739925922371,0.763,2677.2,2677.0,0.12169715]
[1739925922571,29.23898,2677.3,2677.0,3.85709715]
[1739925922737,29.23898,2677.3,2677.1,3.2135832]
[1739925923138,29.23898,2677.3,2677.2,0.12156774]
[1739925925858,29.23898,2677.3,2677.2,3.85680774]
[1739925927557,29.23898,2677.3,2677.2,0.12156774]
[1739925930497,29.23898,2677.3,2677.2,3.85680774]
[1739925931647,29.23898,2677.3,2677.2,0.12156774]
[1739925932806,45.268878,2677.3,2677.2,0.12156774]
[1739925932995,32.162878,2677.3,2677.2,0.12156774]
[1739925933298,4.55265,2677.2,2676.9,0.74811229]
[1739925933493,0.02511611,2677.1,2676.9,0.74811229]
[1739925934696,0.8173,2677.2,2676.9,0.74811229]
[1739925934880,4.63300161,2677.2,2676.9,4.48367229]
[1739925935404,0.8173,2677.2,2676.9,4.48367229]
[1739925935941,32.162878,2677.3,2676.9,0.74811229]
[1739925936091,29.23898,2677.3,2677.2,3.73524]
[1739925941232,29.23898,2677.3,2677.2,4.00286453]
[1739925941937,29.23898,2677.3,2677.2,4.28273332]
[1739925942335,29.23898,2677.3,2677.2,5.48564997]
[1739925944258,29.23898,2677.3,2677.2,5.60698007]
[1739925947432,29.23898,2677.3,2677.2,4.40406342]
[1739925948762,29.23898,2677.3,2677.2,0.66882342]
[1739925949268,42.34498,2677.3,2677.2,0.66882342]
[1739925949861,42.34498,2677.3,2677.2,0.1213301]
[1739925950060,42.34498,2677.3,2676.9,4.48367229]
[1739925950363,33.05468161,2677.3,2677.0,0.12129661]
[1739925950528,33.05468161,2677.3,2677.0,3.85679661]
[1739925951024,33.05468161,2677.3,2677.0,0.12129661]
[1739925951225,0.02511611,2677.2,2677.0,0.12129661]
[1739925951440,0.8093,2677.1,2676.9,3.73564]
[1739925951640,0.8093,2677.1,2677.0,0.12145953]
[1739925952918,0.8093,2677.1,2677.0,7.07056273]
[1739925953113,29.23898,2677.3,2677.2,3.73524]
[1739925953318,29.23898,2677.3,2677.2,3.85657011]
[1739925954360,29.23898,2677.3,2677.2,0.12133011]
[1739925954563,32.243068,2677.3,2677.2,0.12133011]
[1739925954915,32.243068,2677.3,2677.0,6.9491032]
[1739925955121,29.23898,2677.3,2677.1,0.12139482]
[1739925955556,29.23898,2677.3,2677.1,3.85674482]
[1739925955762,29.23898,2677.3,2677.2,3.73524]
[1739925956274,29.23898,2677.3,2677.2,3.85671946]
[1739925956762,29.23898,2677.3,2677.2,0.12147946]
[1739925959495,29.23898,2677.3,2677.2,3.85671946]
[1739925959991,29.23898,2677.3,2677.2,4.61521946]
[1739925960691,29.23898,2677.3,2677.2,5.77162973]
[1739925960892,29.23898,2677.3,2677.2,6.03942116]
[1739925961747,29.23898,2677.3,2677.2,11.39942116]
[1739925964066,29.23898,2677.3,2677.2,14.61300436]
[1739925964266,17.59150395,2677.3,2677.2,14.61300436]
[1739925964788,0.7602,2678.5,2678.2,3.73375]
[1739925964948,0.7602,2678.5,2678.2,6.9473332]
[1739925965148,0.7602,2678.5,2678.3,0.11612103]
[1739925965591,0.7602,2678.5,2678.2,6.9473332]
[1739925965817,0.752,2678.7,2678.6,3.73329]
[1739925965971,0.752,2679.0,2678.7,6.9467332]
[1739925966170,0.752,2679.0,2678.7,6.9466332]
[1739925966399,0.7913,2679.3,2678.8,0.11504457]
[1739925966601,0.452355,2679.2,2678.8,0.11504457]
[1739925966782,0.7913,2679.3,2679.0,3.2135832]
[1739925966983,0.7879,2679.6,2679.3,3.73227]
[1739925967214,0.7879,2679.6,2679.3,3.2135832]
[1739925967398,0.7879,2679.6,2679.4,0.11433809]
[1739925967598,13.095,2679.5,2679.4,0.11433809]
[1739925967804,0.7879,2679.6,2679.4,0.11433809]
[1739925968000,1.239863,2679.6,2679.4,0.11433809]
[1739925969020,3.73203,2679.5,2679.4,0.11433809]
[1739925969390,4.5198,2679.6,2679.4,0.11433809]
[1739925971217,3.73203,2679.5,2679.4,0.11433809]
[1739925971720,0.7879,2679.6,2679.4,0.11433809]
[1739925971877,3.73169,2679.8,2679.4,0.11433809]
[1739925972080,4.558487,2679.8,2679.4,0.11433809]
[1739925972277,0.826797,2679.8,2679.4,0.11433809]
[1739925973342,4.558467,2679.8,2679.4,0.11433809]
[1739925973713,8.290217,2679.8,2679.4,0.11433809]
[1739925973916,3.73177,2679.7,2679.4,0.11433809]
[1739925975251,0.8049,2679.9,2679.4,4.65303809]
[1739925975459,0.8049,2679.9,2679.6,3.2135832]
[1739925975750,0.8049,2679.9,2679.7,0.11354092]
[1739925976049,3.73142,2680.0,2679.7,0.11354092]
[1739925976234,4.553684,2680.0,2679.7,0.11354092]
[1739925976732,0.822264,2680.0,2679.7,0.11354092]
[1739925976957,4.553614,2680.0,2679.7,0.11354092]
[1739925979106,3.73157,2679.9,2679.7,0.11354092]
[1739925984007,3.73162,2679.8,2679.7,0.11354092]
[1739925984637,3.73162,2679.8,2679.4,0.8066]
[1739925984807,3.73162,2679.8,2679.7,0.11246963]
[1739925985009,3.73162,2679.8,2679.4,0.8066]
[1739925985222,3.73162,2679.8,2679.7,0.11246963]
[1739925985419,3.73149,2679.9,2679.4,0.8066]
[1739925985619,3.73149,2679.9,2679.7,0.11246963]
[1739925985826,7.4631,2679.9,2679.4,0.8066]
[1739925986030,3.73149,2679.9,2679.8,0.11240505]
[1739925986228,3.73149,2679.9,2679.4,0.8066]
[1739925986556,3.73149,2679.9,2679.4,2.11784832]
[1739925986857,3.73149,2679.9,2679.5,0.11259881]
[1739925987053,3.73177,2679.7,2679.5,0.11259881]
[1739925987352,3.73155,2679.9,2679.5,0.11259881]
[1739925987759,3.73128,2680.1,2679.6,3.2135832]
[1739925988051,3.73135,2680.0,2679.6,4.08322508]
[1739925988256,3.73128,2680.1,2679.7,0.11225278]
[1739925988657,3.73066,2680.5,2679.9,4.0060832]
[1739925988861,3.73082,2680.4,2679.9,4.0060832]
[1739925989161,0.7544,2680.5,2680.2,3.2135832]
[1739925989645,4.48505,2680.5,2680.3,0.11183827]
[1739925990163,0.02511611,2680.6,2680.2,3.2135832]
[1739925990322,4.48479,2680.7,2680.3,0.7925]
[1739925990521,3.73044,2680.7,2680.4,0.11146209]
[1739925990762,3.73059,2680.6,2680.4,0.11146209]
[1739925991121,3.73064,2680.5,2680.4,0.11146209]
[1739925991454,16.82064,2680.5,2680.2,3.2135832]
[1739925991761,3.73064,2680.5,2680.3,0.11152664]
[1739925992058,3.73059,2680.6,2680.3,0.11152664]
[1739925992261,3.73081,2680.4,2680.2,3.2135832]
[1739925994876,3.73092,2680.3,2680.2,3.2135832]
[1739925995455,3.73081,2680.4,2680.2,3.2135832]
[1739925996285,3.73092,2680.3,2680.2,3.2135832]
[1739925996445,3.75592611,2680.4,2680.0,0.7925]
[1739925996629,3.73136,2680.0,2679.7,0.7518]
[1739925997074,3.73115,2680.2,2679.7,1.50845768]
[1739925997270,3.73115,2680.2,2679.9,3.2135832]
[1739925997432,3.73081,2680.4,2679.9,3.2135832]
[1739925997634,4.48582,2680.6,2680.2,3.2135832]
[1739925997838,8.21644,2680.6,2680.2,3.2135832]
[1739925998039,3.73086,2680.4,2680.2,3.2135832]
[1739925998337,3.73086,2680.4,2680.0,0.7518]
[1739925999173,3.73095,2680.3,2680.0,0.7518]
[1739925999381,3.73086,2680.4,2680.0,0.7518]
[1739926000271,3.73086,2680.4,2680.0,1.60603403]
[1739926001579,3.73109,2680.2,2680.0,1.60603403]
[1739926001775,7.46225,2680.2,2680.0,0.7518]
[1739926002002,3.73109,2680.2,2679.9,5.36]
[1739926002277,3.73134,2680.0,2679.9,5.36]
[1739926002586,3.73118,2680.2,2679.9,6.1417]
[1739926002739,4.5099,2680.4,2679.9,6.83153577]
[1739926002940,3.7309,2680.4,2679.9,6.83153577]
[1739926003537,3.7309,2680.4,2679.9,10.56297577]
[1739926004078,4.50959,2680.6,2679.9,10.56297577]
[1739926004282,3.73065,2680.5,2679.9,10.56297577]
[1739926004472,3.73065,2680.5,2680.0,1.85831759]
[1739926004782,3.7308,2680.4,2680.0,1.85831759]
[1739926004963,3.73094,2680.3,2680.0,0.10750069]
[1739926005134,3.73112,2680.2,2680.0,0.10750069]
[1739926005488,3.73082,2680.4,2680.1,0.8097]
[1739926005786,7.46121,2680.6,2680.2,0.10737156]
[1739926006578,3.7306,2680.6,2680.2,0.10737156]
[1739926006785,7.46121,2680.6,2680.2,0.10737156]
[1739926007388,3.73052,2680.6,2680.2,0.57220872]
[1739926007879,0.8067,2680.7,2680.2,4.30321872]
[1739926007880,4.53707,2680.7,2680.2,4.30321872]
[1739926008083,3.7305,2680.6,2680.2,0.57220872]
[1739926008454,3.7305,2680.6,2680.3,0.26630479]
[1739926008888,3.7305,2680.6,2680.4,0.10724246]
[1739926009858,3.7305,2680.6,2680.2,0.46483716]
[1739926010071,3.7305,2680.6,2680.3,0.10730701]
[1739926010273,3.7305,2680.6,2680.2,0.46483716]
[1739926010473,3.7305,2680.6,2680.3,0.10730701]
[1739926010675,3.73064,2680.5,2680.2,0.46483716]
[1739926010897,7.46109,2680.6,2680.3,0.10730701]
[1739926011084,7.46109,2680.6,2680.2,0.46483716]
[1739926011273,7.46109,2680.6,2680.3,0.10730701]
[1739926011475,7.46109,2680.6,2680.2,0.46483716]
[1739926011703,7.46109,2680.6,2680.3,0.10730701]
[1739926011920,7.46109,2680.6,2680.2,0.46483716]
[1739926012123,3.73065,2680.5,2680.3,0.10730701]
[1739926012320,3.73065,2680.5,2680.2,0.46483716]
[1739926012471,3.73065,2680.5,2680.3,0.10730701]
[1739926012667,3.73065,2680.5,2680.2,0.46483716]
[1739926012904,3.73065,2680.5,2680.3,0.10730701]
[1739926013114,3.73065,2680.5,2680.1,1.56376487]
[1739926013286,3.73065,2680.5,2680.2,0.10737156]
[1739926015116,4.53711,2680.7,2680.2,0.10737156]
[1739926015412,3.73054,2680.6,2680.2,0.10737156]
[1739926016109,3.73032,2680.8,2680.2,0.10737156]
[1739926016311,3.73032,2680.8,2680.3,0.7704]
[1739926016515,3.72997,2681.0,2680.4,0.40913548]
[1739926016670,3.73016,2680.9,2680.4,0.5162425]
[1739926016875,3.73029,2680.8,2680.4,0.5162425]
[1739926017072,3.73037,2680.7,2680.4,0.10710702]
[1739926017308,3.73064,2680.5,2680.4,0.10710702]
[1739926017621,3.73064,2680.5,2680.1,1.50406487]
[1739926017774,3.73064,2680.5,2680.4,0.10710025]
[1739926017975,3.73064,2680.5,2680.1,1.50406487]
[1739926018201,3.73064,2680.5,2680.4,0.10710025]
[1739926018418,4.5283,2680.6,2680.1,6.98928268]
[1739926018621,0.7978,2680.6,2680.4,0.10710025]
[1739926018791,3.73037,2680.7,2680.1,6.98928268]
[1739926018987,7.46086,2680.7,2680.5,0.1070357]
[1739926019292,3.73037,2680.7,2680.6,0.10697116]
[1739926019627,3.73037,2680.7,2680.5,0.8229]
[1739926019832,3.73026,2680.8,2680.6,0.10697116]
[1739926020437,3.73016,2680.9,2680.6,0.10697116]
[1739926020932,3.73016,2680.9,2680.6,0.57676457]
[1739926021092,7.46037,2680.9,2680.6,0.57676457]
[1739926021431,3.73016,2680.9,2680.6,0.10697116]
[1739926021631,7.4598,2681.1,2680.6,0.10697116]
[1739926022327,3.72996,2681.0,2680.6,0.10697116]
[1739926023446,3.73012,2680.9,2680.6,0.10697116]
[1739926024350,3.7297,2681.2,2680.7,0.751]
[1739926024646,3.72965,2681.3,2680.8,0.46257529]
[1739926024846,3.72954,2681.3,2680.9,0.751]
[1739926025009,3.72954,2681.3,2680.9,0.85762858]
[1739926025215,4.49562,2681.5,2680.9,6.21762858]
[1739926025393,0.1457425,2681.7,2681.2,3.72963]
[1739926025595,3.8747925,2681.7,2681.1,4.5428]
[1739926025793,3.72911,2681.6,2681.3,0.10630958]
[1739926026044,3.72911,2681.6,2681.2,0.10637408]
[1739926026197,0.1457425,2681.7,2681.4,0.10624507]
[1739926026397,0.1457425,2681.7,2681.5,0.8131]
[1739926026648,3.72911,2681.6,2681.5,0.10618058]
[1739926026816,4.52642611,2681.6,2681.5,0.10618058]
[1739926027166,3.72998,2681.0,2680.8,0.8131]
[1739926027331,3.72998,2681.0,2680.7,0.74822069]
[1739926027332,3.73009,2680.9,2680.7,0.74822069]
[1739926028245,3.72997,2681.0,2680.7,0.74822069]
[1739926028542,3.72997,2681.0,2680.6,0.8131]
[1739926028744,3.73011,2680.9,2680.6,1.80348]
[1739926029038,0.7722,2681.2,2680.4,5.36]
[1739926029039,3.73053,2680.6,2680.4,5.36]
[1739926029341,3.73053,2680.6,2680.3,0.8131]
[1739926029525,3.7303,2680.8,2680.3,0.8131]
[1739926030117,3.73045,2680.7,2680.3,0.8131]
[1739926030459,3.7303,2680.8,2680.3,4.54396]
[1739926030760,3.7303,2680.8,2680.2,3.97270859]
[1739926030761,3.72975,2681.2,2680.6,3.73037]
[1739926030924,3.72975,2681.2,2680.7,0.8131]
[1739926031258,3.72989,2681.1,2680.7,0.8131]
[1739926031658,0.02511611,2681.4,2680.7,0.8131]
[1739926031659,3.72995,2681.0,2680.7,0.8131]
[1739926031829,3.73034,2680.8,2680.5,0.8131]
[1739926032218,3.72999,2681.0,2680.5,1.35266769]
[1739926032417,3.72999,2681.0,2680.5,0.8131]
[1739926032726,3.73027,2680.8,2680.5,0.8131]
[1739926032920,0.805,2680.8,2680.2,1.52312539]
[1739926033316,3.73036,2680.7,2680.2,1.52312539]
[1739926033546,3.73058,2680.6,2680.2,1.52312539]
[1739926034066,0.805,2680.8,2680.2,2.58456793]
[1739926034369,3.73062,2680.6,2680.3,0.09920281]
[1739926034571,3.73062,2680.6,2680.2,2.58456793]
[1739926034767,3.73062,2680.6,2680.4,0.09913826]
[1739926034969,3.73062,2680.6,2680.3,0.36538663]
[1739926035181,0.805,2680.8,2680.5,0.09914128]
[1739926035474,3.72989,2681.1,2680.6,0.7987]
[1739926035627,3.72989,2681.1,2680.6,0.89777674]
[1739926036065,3.72997,2681.0,2680.6,0.89777674]
[1739926036842,3.72982,2681.1,2680.6,4.62822674]
[1739926037043,3.72995,2681.0,2680.7,0.46282267]
[1739926037261,3.7301,2680.9,2680.6,0.89777674]
[1739926037467,3.7301,2680.9,2680.8,0.09894767]
[1739926037770,3.73022,2680.8,2680.4,6.1587]
[1739926037971,3.73051,2680.6,2680.3,0.29499546]
[1739926038145,3.73077,2680.5,2680.2,1.83604254]
[1739926039975,3.73092,2680.3,2680.2,1.83604254]
[1739926040163,3.73079,2680.4,2680.2,1.83604254]
[1739926040886,0.8223,2680.6,2680.2,1.83604254]
[1739926041088,0.8223,2680.6,2680.3,0.71960425]
[1739926041585,3.73073,2680.5,2680.3,0.71960425]
[1739926042137,3.73044,2680.7,2680.3,0.71960425]
[1739926042374,3.73052,2680.6,2680.3,0.71960425]
[1739926043038,3.73065,2680.5,2680.3,0.71960425]
[1739926044051,3.73048,2680.7,2680.3,0.71960425]
[1739926044585,3.73053,2680.6,2680.4,0.8201]
[1739926045156,3.73064,2680.5,2680.4,0.8201]
[1739926046736,3.73048,2680.7,2680.4,0.8201]
[1739926047336,3.73062,2680.6,2680.4,0.8201]
[1739926048237,3.73048,2680.7,2680.4,0.8201]
[1739926048480,3.73045,2680.7,2680.4,0.8201]
[1739926048698,3.73053,2680.6,2680.4,0.8201]
[1739926049489,3.73053,2680.6,2680.5,0.09928992]
[1739926050585,3.73053,2680.6,2680.2,0.8237]
[1739926050894,3.73058,2680.6,2680.5,0.09928992]
[1739926051400,3.73058,2680.6,2680.2,2.26146038]
[1739926051559,3.73045,2680.7,2680.5,0.09928992]
[1739926051761,4.52595,2681.0,2680.5,0.8237]
[1739926052100,0.7913,2681.6,2680.8,0.8237]
[1739926052263,3.72967,2681.2,2680.8,0.8237]
[1739926052475,3.72967,2681.2,2680.9,0.09903178]
[1739926052994,3.72974,2681.2,2680.9,0.09903178]
[1739926053491,3.72968,2681.2,2680.9,0.09903178]
[1739926054260,4.52052,2681.6,2681.0,0.8237]
[1739926054546,0.1457425,2681.7,2681.3,4.0372832]
[1739926054750,0.1457425,2681.7,2681.5,0.8225]
[1739926055194,0.1457425,2681.7,2681.6,0.09820863]
[1739926062479,4.6902125,2681.7,2681.6,0.09820863]
[1739926062813,3.72954,2681.3,2681.0,1.52368318]
[1739926063326,3.72977,2681.2,2681.0,0.7587]
[1739926063615,0.9612425,2681.7,2681.0,3.9722832]
[1739926063785,0.1457425,2681.7,2681.3,0.7587]
[1739926063972,0.1457425,2681.7,2681.4,0.448824]
[1739926064171,0.1457425,2681.7,2681.4,4.178194]
[1739926064401,0.1457425,2681.7,2681.5,0.09413131]
[1739926064600,0.1457425,2681.7,2681.5,3.82337131]
[1739926064816,0.1457425,2681.7,2681.6,0.8064]
[1739926065112,0.1457425,2681.7,2681.6,2.3172701]
[1739926065815,0.1457425,2681.7,2681.6,6.0463801]
[1739926066368,0.1457425,2681.7,2681.6,2.3172701]
[1739926073871,0.1457425,2681.7,2681.6,1.5108701]
[1739926074062,0.1457425,2681.7,2681.6,0.09407357]
[1739926074654,0.1457425,2681.7,2681.6,4.62638357]
[1739926077587,0.1457425,2681.7,2681.6,13.19996677]
[1739926078136,0.1457425,2681.7,2681.6,6.25727357]
[1739926078982,0.1457425,2681.7,2681.6,9.98638357]
[1739926079165,0.1457425,2681.7,2681.6,7.74685882]
[1739926080346,0.1457425,2681.7,2681.6,6.94365882]
[1739926080547,0.1457425,2681.7,2681.6,5.45407357]
[1739926082602,3.8747125,2681.7,2681.6,5.45407357]
[1739926082914,0.1457425,2681.7,2681.6,5.45407357]
[1739926083451,0.1457425,2681.7,2681.6,0.09407357]
[1739926083684,0.1457425,2681.7,2681.3,9.08951]
[1739926083883,3.8747125,2681.7,2681.6,0.09011092]
[1739926084198,0.1457425,2681.7,2681.4,0.75817726]
[1739926084357,0.1457425,2681.7,2681.6,0.09011092]
[1739926084558,0.1457425,2681.7,2681.4,0.75817726]
[1739926084952,0.1457425,2681.7,2681.5,0.35720054]
[1739926085393,4.49121,2681.6,2681.5,0.35720054]
[1739926085902,0.7621,2681.6,2681.5,0.35720054]
[1739926086116,0.1457425,2681.7,2681.5,0.35720054]
[1739926086726,0.1457425,2681.7,2681.5,4.08642054]
[1739926087021,0.1457425,2681.7,2681.6,0.48407205]
[1739926087375,0.1457425,2681.7,2681.6,0.57449968]
[1739926087574,0.1457425,2681.7,2681.6,4.30360968]
[1739926087790,0.1457425,2681.7,2681.6,5.4404192]
[1739926088410,0.1457425,2681.7,2681.6,5.40313481]
[1739926089372,0.1457425,2681.7,2681.6,10.76313481]
[1739926091995,0.1457425,2681.7,2681.6,16.97671801]
[1739926093693,0.1457425,2681.7,2681.6,13.76313481]
[1739926094607,0.1457425,2681.7,2681.6,10.76313481]
[1739926095926,0.1457425,2681.7,2681.6,13.76313481]
[1739926096429,0.1457425,2681.7,2681.6,9.20152481]
[1739926096580,0.1457425,2681.7,2681.6,0.35745276]
[1739926098046,4.6672125,2681.7,2681.6,0.09042763]
[1739926098539,4.6672125,2681.7,2681.3,5.36]
[1739926098757,0.9382425,2681.7,2681.6,0.09020528]
[1739926098963,0.9382425,2681.7,2681.3,5.36]
[1739926099174,4.6672125,2681.7,2681.6,0.09020528]
[1739926099375,3.72922,2681.6,2681.4,0.26689513]
[1739926100162,0.9382425,2681.7,2681.4,3.99628513]
[1739926100678,0.1457425,2681.7,2681.6,3.72911]
[1739926100844,0.1457425,2681.7,2681.5,4.48415]
[1739926101048,0.1457425,2681.7,2681.6,4.20421451]
[1739926102850,0.1457425,2681.7,2681.6,4.47088411]
[1739926104081,0.1457425,2681.7,2681.6,5.2337246]
[1739926104582,0.1457425,2681.7,2681.6,4.47088411]
[1739926104787,0.1457425,2681.7,2681.6,0.2666696]
[1739926105716,0.1457425,2681.7,2681.4,3.72926]
[1739926105882,0.1457425,2681.7,2681.4,7.45853]
[1739926106082,0.1457425,2681.7,2681.4,3.72926]
[1739926107068,0.1457425,2681.7,2681.5,0.26666917]
[1739926107732,3.8747325,2681.7,2681.5,0.26666917]
[1739926107902,3.8747325,2681.7,2681.3,5.36]
[1739926108215,0.1457425,2681.7,2681.3,5.36]
[1739926108828,0.1457425,2681.7,2681.4,3.72931]
[1739926109385,0.1457425,2681.7,2681.5,3.81942217]
[1739926109889,0.1457425,2681.7,2681.6,3.72911]
[1739926110104,0.1457425,2681.7,2681.6,3.81922768]
[1739926110299,0.1457425,2681.7,2681.6,0.09011768]
[1739926111526,0.1457425,2681.7,2681.6,3.81922768]
[1739926111734,0.1457425,2681.7,2681.6,0.84495745]
[1739926112086,0.1457425,2681.7,2681.6,4.57406745]
[1739926113131,0.1457425,2681.7,2681.6,0.09011768]
[1739926113526,0.1457425,2681.7,2681.4,3.72938]
[1739926113858,0.1457425,2681.7,2681.5,0.09031021]
[1739926114723,0.1457425,2681.7,2681.5,3.81954021]
[1739926114929,0.1457425,2681.7,2681.6,3.72911]
[1739926115433,0.1457425,2681.7,2681.6,3.81935572]
[1739926116250,0.1457425,2681.7,2681.6,0.09024572]
[1739926116625,0.1457425,2681.7,2681.3,10.14952521]
[1739926116840,0.1457425,2681.7,2681.6,0.09024572]
[1739926117035,0.61555936,2681.7,2681.3,5.36]
[1739926117241,0.759,2681.6,2681.1,3.72968]
[1739926117637,4.48818,2681.6,2681.1,3.72968]
[1739926117819,0.759,2681.6,2681.1,3.72968]
[1739926118156,4.48815,2681.6,2681.1,3.72968]
[1739926118855,0.759,2681.6,2681.3,3.72951]
[1739926119332,0.759,2681.6,2681.4,3.7293]
[1739926119739,0.1457425,2681.7,2681.6,3.72911]
[1739926121211,0.1457425,2681.7,2681.6,3.99578479]
[1739926121613,0.1457425,2681.7,2681.6,4.79178479]
[1739926123163,0.1457425,2681.7,2681.6,5.55062256]
[1739926124395,0.1457425,2681.7,2681.6,5.64099631]
[1739926124613,0.1457425,2681.7,2681.6,7.18861064]
[1739926128110,0.1457425,2681.7,2681.6,7.22589767]
[1739926128296,0.1457425,2681.7,2681.6,7.18861064]
[1739926130010,0.1457425,2681.7,2681.6,6.39261064]
[1739926130211,0.1457425,2681.7,2681.6,1.11588631]
[1739926130398,4.6938125,2681.7,2681.6,0.35704854]
[1739926130595,0.9648425,2681.7,2681.6,0.35704854]
[1739926130764,0.1457425,2681.7,2681.6,0.35704854]
[1739926130965,0.1457425,2681.7,2681.6,4.08615854]
[1739926131164,0.1457425,2681.7,2681.6,5.03077439]
[1739926131367,0.1457425,2681.7,2681.6,4.7640996]
[1739926131801,0.1457425,2681.7,2681.6,5.5581996]
[1739926132010,0.1457425,2681.7,2681.6,5.59548574]
[1739926132415,0.1457425,2681.7,2681.6,5.5581996]
[1739926133085,0.1457425,2681.7,2681.6,5.59548538]
[1739926133613,0.1457425,2681.7,2681.6,5.59548535]
[1739926133916,0.1457425,2681.7,2681.6,5.5581996]
[1739926134070,0.1457425,2681.7,2681.6,10.9181996]
[1739926134496,0.1457425,2681.7,2681.6,11.1848288]
[1739926137187,0.1457425,2681.7,2681.6,9.44611295]
[1739926137923,0.1457425,2681.7,2681.6,5.71700295]
[1739926138979,0.1457425,2681.7,2681.6,9.44611295]
[1739926139391,0.1457425,2681.7,2681.6,9.17948375]
[1739926140022,0.1457425,2681.7,2681.6,3.81948375]
[1739926141181,0.1457425,2681.7,2681.6,5.18975413]
[1739926142115,0.1457425,2681.7,2681.6,5.45645646]
[1739926144090,0.1457425,2681.7,2681.6,4.08618608]
[1739926144249,0.1457425,2681.7,2681.6,0.35707608]
[1739926145364,0.9683425,2681.7,2681.6,0.35707608]
[1739926146192,0.9683425,2681.7,2681.6,0.09037375]
[1739926146490,0.9683425,2681.7,2681.6,3.81948375]
[1739926146657,0.1457425,2681.7,2681.6,3.81948375]
[1739926146857,0.1457425,2681.7,2681.6,4.60102636]